[Event "Titled Tuesday Blitz June 13 Late 2023"]
[White "Grigoriants, Sergey"]
[Black "Santos Ruiz, Miguel"]
[WhiteFideId "4130804"]
[BlackFideId "22291482"]
[WhiteElo "2502"]
[BlackElo "2499"]
[Result "1-0"]
[Round "9"]
[TimeControl "180+2"]
[Date "2023.06.13"]
[WhiteClock "0:00:04"]
[BlackClock "0:00:00"]
[Board "18"]

1. d4 {[%clk 0:02:55]}  Nf6 {[%clk 0:02:59]} 2. c4 {[%clk 0:02:53]}  e6 {[%clk 0:02:59]} 3. g3 {[%clk 0:02:51]}  d5 {[%clk 0:02:59]} 4. Bg2 {[%clk 0:02:51]}  Be7 {[%clk 0:02:54]} 5. Nf3 {[%clk 0:02:51]}  Ne4 {[%clk 0:02:54]} 6. O-O {[%clk 0:02:51]}  f5 {[%clk 0:02:54]} 7. b3 {[%clk 0:02:40]}  Nc6 {[%clk 0:02:53]} 8. Ba3 {[%clk 0:02:39]}  Bf6 {[%clk 0:02:51]} 9. e3 {[%clk 0:02:37]}  h5 {[%clk 0:02:52]} 10. h4 {[%clk 0:02:22]}  g5 {[%clk 0:02:49]} 11. hxg5 {[%clk 0:02:21]}  Bxg5 {[%clk 0:02:49]} 12. Nbd2 {[%clk 0:01:58]}  h4 {[%clk 0:02:49]} 13. gxh4 {[%clk 0:01:40]}  Bxh4 {[%clk 0:02:45]} 14. Nxe4 {[%clk 0:01:31]}  dxe4 {[%clk 0:02:41]} 15. Ne1 {[%clk 0:01:27]}  Qg5 {[%clk 0:01:39]} 16. d5 {[%clk 0:01:24]}  exd5 {[%clk 0:00:43]} 17. cxd5 {[%clk 0:01:14]}  Qh6 {[%clk 0:00:43]} 18. dxc6 {[%clk 0:01:01]}  Be7 {[%clk 0:00:25]} 19. f4 {[%clk 0:01:01]}  Qh2+ {[%clk 0:00:24]} 20. Kf2 {[%clk 0:01:01]}  Bh4+ {[%clk 0:00:16]} 21. Ke2 {[%clk 0:01:00]}  Bxe1 {[%clk 0:00:15]} 22. Kxe1 {[%clk 0:00:48]}  Qxg2 {[%clk 0:00:09]} 23. Qd4 {[%clk 0:00:48]}  Rh2 {[%clk 0:00:07]} 24. Qe5+ {[%clk 0:00:38]}  Kf7 {[%clk 0:00:07]} 25. Qe7+ {[%clk 0:00:38]}  Kg6 {[%clk 0:00:03]} 26. Qe8+ {[%clk 0:00:36]}  Kh7 {[%clk 0:00:02]} 27. Qf7+ {[%clk 0:00:29]}  Qg7 {[%clk 0:00:02]} 28. Qxg7+ {[%clk 0:00:27]}  Kxg7 {[%clk 0:00:02]} 29. Rf2 {[%clk 0:00:23]}  Rh1+ {[%clk 0:00:02]} 30. Rf1 {[%clk 0:00:24]}  Rxf1+ {[%clk 0:00:02]} 31. Kxf1 {[%clk 0:00:24]}  b6 {[%clk 0:00:03]} 32. Rd1 {[%clk 0:00:21]}  Kf7 {[%clk 0:00:03]} 33. Bb2 {[%clk 0:00:20]}  Be6 {[%clk 0:00:03]} 34. Be5 {[%clk 0:00:20]}  Rc8 {[%clk 0:00:03]} 35. Kf2 {[%clk 0:00:18]}  a5 {[%clk 0:00:04]} 36. Rg1 {[%clk 0:00:09]}  Bd5 {[%clk 0:00:03]} 37. Rg7+ {[%clk 0:00:09]}  Ke6 {[%clk 0:00:03]} 38. Rg6+ {[%clk 0:00:09]}  Ke7 {[%clk 0:00:03]} 39. Rf6 {[%clk 0:00:05]}  Rf8 {[%clk 0:00:03]} 40. Rh6 {[%clk 0:00:04]}  Rc8 {[%clk 0:00:01]} 41. Ke2 {[%clk 0:00:04]}  Be6 {[%clk 0:00:01]} 42. Kd2 {[%clk 0:00:04]}  Bf7 {[%clk 0:00:01]} 43. Kc3 {[%clk 0:00:04]}  Rd8 {[%clk 0:00:00]} 44. Bf6+ {[%clk 0:00:04]} 1-0


[Site "https://www.chess.com"]

[Event "Titled Tuesday Blitz June 13 Late 2023"]
[White "Tristan, Leonardo"]
[Black "Pap, Gyula"]
[WhiteFideId "113816"]
[BlackFideId "725323"]
[WhiteElo "2461"]
[BlackElo "2519"]
[Result "1/2-1/2"]
[Round "9"]
[TimeControl "180+2"]
[Date "2023.06.13"]
[WhiteClock "0:00:05"]
[BlackClock "0:00:06"]
[Board "21"]

1. d4 {[%clk 0:02:55]}  d5 {[%clk 0:02:56]} 2. Nf3 {[%clk 0:02:55]}  Nf6 {[%clk 0:02:55]} 3. Bf4 {[%clk 0:02:56]}  c5 {[%clk 0:02:55]} 4. e3 {[%clk 0:02:56]}  Nc6 {[%clk 0:02:49]} 5. Nbd2 {[%clk 0:02:56]}  Nh5 {[%clk 0:02:44]} 6. dxc5 {[%clk 0:02:55]}  Nxf4 {[%clk 0:02:45]} 7. exf4 {[%clk 0:02:56]}  g6 {[%clk 0:02:45]} 8. Bb5 {[%clk 0:02:42]}  Bg7 {[%clk 0:02:43]} 9. c3 {[%clk 0:02:41]}  O-O {[%clk 0:02:42]} 10. O-O {[%clk 0:02:30]}  d4 {[%clk 0:02:42]} 11. Bxc6 {[%clk 0:02:16]}  dxc3 {[%clk 0:02:40]} 12. Be4 {[%clk 0:02:16]}  cxd2 {[%clk 0:02:40]} 13. Qxd2 {[%clk 0:02:16]}  Qxd2 {[%clk 0:02:36]} 14. Nxd2 {[%clk 0:02:17]}  Bxb2 {[%clk 0:02:37]} 15. Rab1 {[%clk 0:02:17]}  Ba3 {[%clk 0:02:30]} 16. c6 {[%clk 0:01:40]}  bxc6 {[%clk 0:02:16]} 17. Bxc6 {[%clk 0:01:41]}  Ba6 {[%clk 0:02:12]} 18. Bxa8 {[%clk 0:01:14]}  Bxf1 {[%clk 0:02:12]} 19. Kxf1 {[%clk 0:01:14]}  Rxa8 {[%clk 0:02:11]} 20. Rb7 {[%clk 0:01:13]}  a5 {[%clk 0:01:39]} 21. Nc4 {[%clk 0:01:13]}  Bb4 {[%clk 0:01:38]} 22. a3 {[%clk 0:01:08]}  Bd6 {[%clk 0:01:27]} 23. g3 {[%clk 0:00:49]}  Rc8 {[%clk 0:01:24]} 24. Nxd6 {[%clk 0:00:38]}  exd6 {[%clk 0:01:25]} 25. Rb5 {[%clk 0:00:38]}  Rc5 {[%clk 0:01:15]} 26. a4 {[%clk 0:00:18]}  Kf8 {[%clk 0:01:07]} 27. Rb6 {[%clk 0:00:18]}  Ke7 {[%clk 0:00:58]} 28. Ra6 {[%clk 0:00:18]}  Ke6 {[%clk 0:00:54]} 29. Ke2 {[%clk 0:00:19]}  h5 {[%clk 0:00:44]} 30. Kd3 {[%clk 0:00:17]}  f6 {[%clk 0:00:39]} 31. h3 {[%clk 0:00:14]}  Kd5 {[%clk 0:00:32]} 32. g4 {[%clk 0:00:12]}  hxg4 {[%clk 0:00:29]} 33. hxg4 {[%clk 0:00:12]}  Ke6 {[%clk 0:00:30]} 34. f3 {[%clk 0:00:12]}  g5 {[%clk 0:00:26]} 35. f5+ {[%clk 0:00:08]}  Ke5 {[%clk 0:00:26]} 36. Ke3 {[%clk 0:00:08]}  Rc3+ {[%clk 0:00:20]} 37. Ke2 {[%clk 0:00:07]}  Ra3 {[%clk 0:00:11]} 38. Rxa5+ {[%clk 0:00:07]}  Kf4 {[%clk 0:00:08]} 39. Rd5 {[%clk 0:00:07]}  Rxa4 {[%clk 0:00:04]} 40. Rxd6 {[%clk 0:00:07]}  Ra2+ {[%clk 0:00:04]} 41. Kd3 {[%clk 0:00:06]}  Kxf3 {[%clk 0:00:03]} 42. Rxf6 {[%clk 0:00:06]}  Kxg4 {[%clk 0:00:04]} 43. Rf8 {[%clk 0:00:07]}  Kf4 {[%clk 0:00:02]} 44. f6 {[%clk 0:00:07]}  Kf5 {[%clk 0:00:03]} 45. f7 {[%clk 0:00:04]}  Ra7 {[%clk 0:00:04]} 46. Ke3 {[%clk 0:00:04]}  Re7+ {[%clk 0:00:04]} 47. Kf3 {[%clk 0:00:04]}  Kf6 {[%clk 0:00:05]} 48. Kg4 {[%clk 0:00:04]}  Kg7 {[%clk 0:00:04]} 49. Rg8+ {[%clk 0:00:04]}  Kxf7 {[%clk 0:00:05]} 50. Rxg5 {[%clk 0:00:05]}  Re6 {[%clk 0:00:05]} 51. Rf5+ {[%clk 0:00:05]}  Rf6 {[%clk 0:00:05]} 52. Rxf6+ {[%clk 0:00:05]}  Kxf6 {[%clk 0:00:06]} 1/2-1/2


[Site "https://www.chess.com"]

[Event "Titled Tuesday Blitz June 13 Late 2023"]
[White "Chigaev, Maksim"]
[Black "benny_aizenberg"]
[WhiteFideId "4108116"]
[WhiteElo "2561"]
[BlackElo "2691"]
[Result "1-0"]
[Round "9"]
[TimeControl "180+2"]
[Date "2023.06.13"]
[WhiteClock "0:00:06"]
[BlackClock "0:00:09"]
[Board "22"]

1. Nf3 {[%clk 0:01:10]}  c5 {[%clk 0:02:57]} 2. g3 {[%clk 0:01:08]}  g6 {[%clk 0:02:55]} 3. Bg2 {[%clk 0:01:08]}  Bg7 {[%clk 0:02:56]} 4. O-O {[%clk 0:01:09]}  Nc6 {[%clk 0:02:56]} 5. e4 {[%clk 0:01:09]}  d6 {[%clk 0:02:51]} 6. c3 {[%clk 0:01:09]}  e5 {[%clk 0:02:49]} 7. a4 {[%clk 0:01:07]}  Nge7 {[%clk 0:02:48]} 8. Na3 {[%clk 0:01:07]}  O-O {[%clk 0:02:47]} 9. Nc2 {[%clk 0:01:03]}  f5 {[%clk 0:02:44]} 10. exf5 {[%clk 0:01:03]}  gxf5 {[%clk 0:02:43]} 11. d4 {[%clk 0:01:03]}  e4 {[%clk 0:02:42]} 12. Ng5 {[%clk 0:01:02]}  h6 {[%clk 0:02:39]} 13. Nh3 {[%clk 0:01:02]}  Be6 {[%clk 0:02:38]} 14. Nf4 {[%clk 0:01:01]}  Bb3 {[%clk 0:02:38]} 15. Ra3 {[%clk 0:00:44]}  Qb6 {[%clk 0:02:20]} 16. dxc5 {[%clk 0:00:35]}  dxc5 {[%clk 0:02:18]} 17. Be3 {[%clk 0:00:32]}  Rad8 {[%clk 0:02:14]} 18. Qc1 {[%clk 0:00:31]}  Bc4 {[%clk 0:02:13]} 19. Nh5 {[%clk 0:00:30]}  Ne5 {[%clk 0:01:49]} 20. a5 {[%clk 0:00:30]}  Qg6 {[%clk 0:01:46]} 21. Nxg7 {[%clk 0:00:30]}  Kxg7 {[%clk 0:01:46]} 22. Bxc5 {[%clk 0:00:30]}  Nd3 {[%clk 0:01:06]} 23. Qe3 {[%clk 0:00:30]}  Rf7 {[%clk 0:01:00]} 24. Bd4+ {[%clk 0:00:22]}  Kh7 {[%clk 0:00:57]} 25. b3 {[%clk 0:00:11]}  Bd5 {[%clk 0:00:57]} 26. c4 {[%clk 0:00:11]}  Bc6 {[%clk 0:00:57]} 27. f4 {[%clk 0:00:07]}  exf3 {[%clk 0:00:48]} 28. Bxf3 {[%clk 0:00:07]}  f4 {[%clk 0:00:49]} 29. Qe2 {[%clk 0:00:03]}  fxg3 {[%clk 0:00:47]} 30. Bxc6 {[%clk 0:00:03]}  gxh2+ {[%clk 0:00:44]} 31. Kxh2 {[%clk 0:00:04]}  Rxf1 {[%clk 0:00:40]} 32. Qxe7+ {[%clk 0:00:03]}  Rf7 {[%clk 0:00:37]} 33. Qxd8 {[%clk 0:00:03]}  Qh5+ {[%clk 0:00:34]} 34. Kg3 {[%clk 0:00:02]}  bxc6 {[%clk 0:00:26]} 35. Qh8+ {[%clk 0:00:03]}  Kg6 {[%clk 0:00:27]} 36. Qg8+ {[%clk 0:00:03]}  Kf5 {[%clk 0:00:27]} 37. Qc8+ {[%clk 0:00:03]}  Kg6 {[%clk 0:00:25]} 38. Qg4+ {[%clk 0:00:04]}  Qxg4+ {[%clk 0:00:25]} 39. Kxg4 {[%clk 0:00:05]}  h5+ {[%clk 0:00:24]} 40. Kg3 {[%clk 0:00:05]}  Kg5 {[%clk 0:00:24]} 41. Be3+ {[%clk 0:00:05]}  Kf5 {[%clk 0:00:23]} 42. b4 {[%clk 0:00:06]}  Rg7+ {[%clk 0:00:23]} 43. Kh3 {[%clk 0:00:04]}  Ke4 {[%clk 0:00:22]} 44. Bd2 {[%clk 0:00:02]}  Nf2+ {[%clk 0:00:22]} 45. Kh4 {[%clk 0:00:02]}  Rg2 {[%clk 0:00:21]} 46. Re3+ {[%clk 0:00:02]}  Kf5 {[%clk 0:00:21]} 47. Rf3+ {[%clk 0:00:02]}  Ke4 {[%clk 0:00:22]} 48. Rf4+ {[%clk 0:00:03]}  Kd3 {[%clk 0:00:22]} 49. Ne1+ {[%clk 0:00:03]}  Kxd2 {[%clk 0:00:19]} 50. Nxg2 {[%clk 0:00:04]}  Nd3 {[%clk 0:00:20]} 51. Rd4 {[%clk 0:00:04]}  Kc3 {[%clk 0:00:20]} 52. Rxd3+ {[%clk 0:00:05]}  Kxd3 {[%clk 0:00:20]} 53. b5 {[%clk 0:00:05]}  Kxc4 {[%clk 0:00:09]} 54. b6 {[%clk 0:00:06]} 1-0


[Site "https://www.chess.com"]

[Event "Titled Tuesday Blitz June 13 Late 2023"]
[White "Bellahcene, Bilel"]
[Black "Kosakowski, Jakub"]
[WhiteFideId "696358"]
[BlackFideId "1185080"]
[WhiteElo "2552"]
[BlackElo "2488"]
[Result "1/2-1/2"]
[Round "9"]
[TimeControl "180+2"]
[Date "2023.06.13"]
[WhiteClock "0:00:06"]
[BlackClock "0:01:00"]
[Board "23"]

1. e4 {[%clk 0:02:43]}  c6 {[%clk 0:02:56]} 2. d4 {[%clk 0:02:43]}  d5 {[%clk 0:02:57]} 3. exd5 {[%clk 0:02:43]}  cxd5 {[%clk 0:02:57]} 4. Nf3 {[%clk 0:02:44]}  Nc6 {[%clk 0:02:57]} 5. Ne5 {[%clk 0:02:41]}  a6 {[%clk 0:02:57]} 6. c4 {[%clk 0:02:36]}  Nf6 {[%clk 0:02:53]} 7. Nc3 {[%clk 0:02:35]}  dxc4 {[%clk 0:02:42]} 8. Nxc6 {[%clk 0:02:29]}  bxc6 {[%clk 0:02:43]} 9. Bxc4 {[%clk 0:02:29]}  Bg4 {[%clk 0:02:43]} 10. Qa4 {[%clk 0:02:28]}  Qd7 {[%clk 0:02:37]} 11. Bf4 {[%clk 0:02:17]}  e6 {[%clk 0:02:36]} 12. O-O {[%clk 0:02:17]}  Be7 {[%clk 0:02:35]} 13. h3 {[%clk 0:02:16]}  Bh5 {[%clk 0:02:35]} 14. Be5 {[%clk 0:01:50]}  O-O {[%clk 0:02:33]} 15. Rac1 {[%clk 0:01:49]}  Rfd8 {[%clk 0:02:28]} 16. Qa5 {[%clk 0:01:47]}  Qb7 {[%clk 0:02:14]} 17. Bxf6 {[%clk 0:01:46]}  Bxf6 {[%clk 0:02:05]} 18. Qxh5 {[%clk 0:01:45]}  Rxd4 {[%clk 0:02:05]} 19. Bb3 {[%clk 0:01:43]}  a5 {[%clk 0:02:06]} 20. Na4 {[%clk 0:01:33]}  Qb5 {[%clk 0:02:05]} 21. Rc5 {[%clk 0:01:31]}  Qa6 {[%clk 0:01:57]} 22. Rfc1 {[%clk 0:01:15]}  Rd6 {[%clk 0:01:56]} 23. Qf3 {[%clk 0:01:13]}  Rc8 {[%clk 0:01:56]} 24. g3 {[%clk 0:01:13]}  h6 {[%clk 0:01:51]} 25. h4 {[%clk 0:01:13]}  Qb7 {[%clk 0:01:47]} 26. Kg2 {[%clk 0:01:13]}  Rd2 {[%clk 0:01:46]} 27. Rxa5 {[%clk 0:01:13]}  Bd4 {[%clk 0:01:46]} 28. Rc2 {[%clk 0:01:12]}  Rxc2 {[%clk 0:01:43]} 29. Bxc2 {[%clk 0:01:13]}  Qb4 {[%clk 0:01:44]} 30. Ra6 {[%clk 0:01:03]}  Qd2 {[%clk 0:01:43]} 31. Bd3 {[%clk 0:01:03]}  c5 {[%clk 0:01:39]} 32. Be2 {[%clk 0:01:01]}  c4 {[%clk 0:01:36]} 33. Ra8 {[%clk 0:00:58]}  Rxa8 {[%clk 0:01:34]} 34. Qxa8+ {[%clk 0:00:59]}  Kh7 {[%clk 0:01:35]} 35. Qe4+ {[%clk 0:01:00]}  Kg8 {[%clk 0:01:35]} 36. h5 {[%clk 0:00:54]}  Kh8 {[%clk 0:01:23]} 37. Qa8+ {[%clk 0:00:53]}  Kh7 {[%clk 0:01:23]} 38. Qe4+ {[%clk 0:00:53]}  Kh8 {[%clk 0:01:23]} 39. Kh3 {[%clk 0:00:43]}  Kg8 {[%clk 0:01:19]} 40. f4 {[%clk 0:00:37]}  Qe1 {[%clk 0:01:14]} 41. Bf3 {[%clk 0:00:34]}  Qf1+ {[%clk 0:01:01]} 42. Bg2 {[%clk 0:00:34]}  Qd1 {[%clk 0:01:01]} 43. Qa8+ {[%clk 0:00:31]}  Kh7 {[%clk 0:01:01]} 44. Qe4+ {[%clk 0:00:28]}  f5 {[%clk 0:00:58]} 45. Bf3 {[%clk 0:00:20]}  Qf1+ {[%clk 0:00:58]} 46. Bg2 {[%clk 0:00:19]}  Qd1 {[%clk 0:00:59]} 47. Bf3 {[%clk 0:00:06]}  Qf1+ {[%clk 0:00:59]} 48. Bg2 {[%clk 0:00:06]}  Qd1 {[%clk 0:01:00]} 1/2-1/2


[Site "https://www.chess.com"]

[Event "Titled Tuesday Blitz June 13 Late 2023"]
[White "Sydoryka, Vladyslav"]
[Black "Gadimbayli, Abdulla"]
[WhiteFideId "14145928"]
[BlackFideId "13404938"]
[WhiteElo "2269"]
[BlackElo "2386"]
[Result "0-1"]
[Round "9"]
[TimeControl "180+2"]
[Date "2023.06.13"]
[WhiteClock "0:00:00"]
[BlackClock "0:00:17"]
[Board "25"]

1. c4 {[%clk 0:03:00]}  Nf6 {[%clk 0:02:49]} 2. g3 {[%clk 0:03:00]}  e6 {[%clk 0:02:48]} 3. Bg2 {[%clk 0:03:00]}  d5 {[%clk 0:02:49]} 4. Nf3 {[%clk 0:03:00]}  Bd6 {[%clk 0:02:50]} 5. O-O {[%clk 0:03:00]}  O-O {[%clk 0:02:51]} 6. b3 {[%clk 0:03:00]}  c5 {[%clk 0:02:50]} 7. Bb2 {[%clk 0:03:00]}  d4 {[%clk 0:02:51]} 8. e3 {[%clk 0:02:59]}  e5 {[%clk 0:02:51]} 9. b4 {[%clk 0:02:54]}  Nc6 {[%clk 0:02:21]} 10. exd4 {[%clk 0:02:35]}  exd4 {[%clk 0:02:19]} 11. b5 {[%clk 0:02:35]}  Na5 {[%clk 0:02:15]} 12. d3 {[%clk 0:02:35]}  h6 {[%clk 0:02:10]} 13. Nbd2 {[%clk 0:02:35]}  Bf5 {[%clk 0:02:10]} 14. Nb3 {[%clk 0:02:34]}  Nxb3 {[%clk 0:02:10]} 15. axb3 {[%clk 0:02:35]}  Qd7 {[%clk 0:02:10]} 16. b4 {[%clk 0:02:21]}  Rfe8 {[%clk 0:02:03]} 17. Qd2 {[%clk 0:02:06]}  Re7 {[%clk 0:02:00]} 18. Rfe1 {[%clk 0:02:05]}  Rxe1+ {[%clk 0:01:59]} 19. Rxe1 {[%clk 0:02:05]}  a6 {[%clk 0:01:50]} 20. bxc5 {[%clk 0:01:37]}  Bxc5 {[%clk 0:01:51]} 21. Ne5 {[%clk 0:01:38]}  Qc8 {[%clk 0:01:49]} 22. bxa6 {[%clk 0:01:10]}  Rxa6 {[%clk 0:01:50]} 23. Qf4 {[%clk 0:01:11]}  g5 {[%clk 0:01:35]} 24. Qf3 {[%clk 0:01:11]}  Ra2 {[%clk 0:01:35]} 25. Bc1 {[%clk 0:00:26]}  Bb4 {[%clk 0:01:36]} 26. Rd1 {[%clk 0:00:22]}  Qe6 {[%clk 0:01:36]} 27. Qxb7 {[%clk 0:00:20]}  Bc3 {[%clk 0:00:32]} 28. Qb8+ {[%clk 0:00:03]}  Kg7 {[%clk 0:00:31]} 29. h4 {[%clk 0:00:04]}  Ng4 {[%clk 0:00:31]} 30. Nxg4 {[%clk 0:00:03]}  Bxg4 {[%clk 0:00:32]} 31. Rf1 {[%clk 0:00:03]}  Be2 {[%clk 0:00:24]} 32. hxg5 {[%clk 0:00:04]}  hxg5 {[%clk 0:00:23]} 33. Bxg5 {[%clk 0:00:03]}  Bxf1 {[%clk 0:00:23]} 34. Bxf1 {[%clk 0:00:04]}  Be1 {[%clk 0:00:17]} 35. Qf4 {[%clk 0:00:02]}  Bxf2+ {[%clk 0:00:18]} 36. Kh1 {[%clk 0:00:02]}  Be3 {[%clk 0:00:18]} 37. Qh4 {[%clk 0:00:00]}  Qc6+ {[%clk 0:00:17]} 0-1


[Site "https://www.chess.com"]

[Event "Titled Tuesday Blitz June 13 Late 2023"]
[White "Janaszak, Dawid"]
[Black "Yanchenko, Roman"]
[WhiteFideId "1119206"]
[BlackFideId "4137329"]
[WhiteElo "2220"]
[BlackElo "2491"]
[Result "0-1"]
[Round "9"]
[TimeControl "180+2"]
[Date "2023.06.13"]
[WhiteClock "0:00:00"]
[BlackClock "0:00:06"]
[Board "27"]

1. Nf3 {[%clk 0:03:00]}  d5 {[%clk 0:03:00]} 2. g3 {[%clk 0:03:00]}  Nf6 {[%clk 0:03:00]} 3. Bg2 {[%clk 0:03:00]}  Bf5 {[%clk 0:03:00]} 4. O-O {[%clk 0:03:00]}  e6 {[%clk 0:03:00]} 5. d3 {[%clk 0:02:58]}  Be7 {[%clk 0:03:01]} 6. c4 {[%clk 0:02:59]}  O-O {[%clk 0:03:01]} 7. b3 {[%clk 0:02:57]}  h6 {[%clk 0:02:59]} 8. Bb2 {[%clk 0:02:57]}  a5 {[%clk 0:02:59]} 9. Nbd2 {[%clk 0:02:55]}  c6 {[%clk 0:02:57]} 10. a3 {[%clk 0:02:50]}  Nbd7 {[%clk 0:02:55]} 11. Ra2 {[%clk 0:02:48]}  b5 {[%clk 0:02:51]} 12. Qa1 {[%clk 0:02:48]}  a4 {[%clk 0:02:48]} 13. bxa4 {[%clk 0:02:45]}  bxc4 {[%clk 0:02:47]} 14. dxc4 {[%clk 0:02:41]}  Rxa4 {[%clk 0:02:47]} 15. Nd4 {[%clk 0:02:39]}  Qa8 {[%clk 0:02:05]} 16. cxd5 {[%clk 0:02:34]}  cxd5 {[%clk 0:02:04]} 17. Nxf5 {[%clk 0:02:32]}  exf5 {[%clk 0:02:05]} 18. Rd1 {[%clk 0:02:26]}  Nc5 {[%clk 0:01:52]} 19. Bd4 {[%clk 0:02:09]}  Rb8 {[%clk 0:01:46]} 20. Rc1 {[%clk 0:01:54]}  Ne6 {[%clk 0:01:41]} 21. Be5 {[%clk 0:01:52]}  Rd8 {[%clk 0:01:41]} 22. Nc4 {[%clk 0:01:42]}  Qa6 {[%clk 0:01:34]} 23. Ne3 {[%clk 0:01:37]}  Ne4 {[%clk 0:01:28]} 24. Nxf5 {[%clk 0:01:30]}  Bf8 {[%clk 0:01:26]} 25. Nd4 {[%clk 0:01:13]}  Qb6 {[%clk 0:01:11]} 26. e3 {[%clk 0:01:09]}  N6c5 {[%clk 0:01:03]} 27. Qb1 {[%clk 0:00:59]}  Qa6 {[%clk 0:00:58]} 28. Bf1 {[%clk 0:00:46]}  Qa8 {[%clk 0:00:58]} 29. f3 {[%clk 0:00:39]}  Ng5 {[%clk 0:00:58]} 30. h4 {[%clk 0:00:37]}  Nge6 {[%clk 0:00:57]} 31. Nxe6 {[%clk 0:00:33]}  Nxe6 {[%clk 0:00:57]} 32. Bb5 {[%clk 0:00:31]}  Rxa3 {[%clk 0:00:57]} 33. Rcc2 {[%clk 0:00:15]}  Bc5 {[%clk 0:00:54]} 34. Kg2 {[%clk 0:00:12]}  Bxe3 {[%clk 0:00:49]} 35. Rxa3 {[%clk 0:00:08]}  Qxa3 {[%clk 0:00:50]} 36. Ra2 {[%clk 0:00:08]}  Qe7 {[%clk 0:00:48]} 37. Qd3 {[%clk 0:00:07]}  Bc5 {[%clk 0:00:45]} 38. Rc2 {[%clk 0:00:06]}  d4 {[%clk 0:00:34]} 39. Bc4 {[%clk 0:00:06]}  Bd6 {[%clk 0:00:34]} 40. f4 {[%clk 0:00:05]}  Bxe5 {[%clk 0:00:33]} 41. fxe5 {[%clk 0:00:06]}  Qb7+ {[%clk 0:00:33]} 42. Kh2 {[%clk 0:00:06]}  Qb6 {[%clk 0:00:31]} 43. Qf5 {[%clk 0:00:05]}  d3 {[%clk 0:00:27]} 44. Rf2 {[%clk 0:00:05]}  Rd7 {[%clk 0:00:22]} 45. Bxd3 {[%clk 0:00:05]}  Rxd3 {[%clk 0:00:18]} 46. Qxf7+ {[%clk 0:00:06]}  Kh8 {[%clk 0:00:14]} 47. Rc2 {[%clk 0:00:04]}  Rd8 {[%clk 0:00:12]} 48. h5 {[%clk 0:00:04]}  Rf8 {[%clk 0:00:12]} 49. Qe7 {[%clk 0:00:04]}  Rf2+ {[%clk 0:00:12]} 50. Rxf2 {[%clk 0:00:04]}  Qxf2+ {[%clk 0:00:13]} 51. Kh1 {[%clk 0:00:05]}  Qf5 {[%clk 0:00:11]} 52. Qe8+ {[%clk 0:00:03]}  Kh7 {[%clk 0:00:11]} 53. Kh2 {[%clk 0:00:04]}  Ng5 {[%clk 0:00:09]} 54. Kg1 {[%clk 0:00:02]}  Ne4 {[%clk 0:00:06]} 55. g4 {[%clk 0:00:00]}  Qf2+ {[%clk 0:00:06]} 0-1


[Site "https://www.chess.com"]

[Event "Titled Tuesday Blitz June 13 Late 2023"]
[White "Manea, Alexandru"]
[Black "Klukin, Kirill"]
[WhiteFideId "1207660"]
[BlackFideId "24199273"]
[WhiteElo "2226"]
[BlackElo "2344"]
[Result "1-0"]
[Round "9"]
[TimeControl "180+2"]
[Date "2023.06.13"]
[WhiteClock "0:01:26"]
[BlackClock "0:00:02"]
[Board "28"]

1. d4 {[%clk 0:03:00]}  Nf6 {[%clk 0:00:49]} 2. Bf4 {[%clk 0:02:59]}  g6 {[%clk 0:00:48]} 3. Nc3 {[%clk 0:02:59]}  d5 {[%clk 0:00:47]} 4. h4 {[%clk 0:02:59]}  h6 {[%clk 0:00:46]} 5. Qd2 {[%clk 0:02:58]}  Bg7 {[%clk 0:00:46]} 6. Nf3 {[%clk 0:02:58]}  Bf5 {[%clk 0:00:44]} 7. Ne5 {[%clk 0:02:58]}  Nbd7 {[%clk 0:00:42]} 8. e3 {[%clk 0:02:58]}  c6 {[%clk 0:00:41]} 9. f3 {[%clk 0:02:58]}  Nxe5 {[%clk 0:00:39]} 10. Bxe5 {[%clk 0:02:53]}  h5 {[%clk 0:00:38]} 11. O-O-O {[%clk 0:02:46]}  Qd7 {[%clk 0:00:38]} 12. Kb1 {[%clk 0:02:46]}  O-O {[%clk 0:00:36]} 13. Bd3 {[%clk 0:02:40]}  Rac8 {[%clk 0:00:35]} 14. Rhg1 {[%clk 0:02:31]}  c5 {[%clk 0:00:32]} 15. Bxf5 {[%clk 0:02:08]}  Qxf5 {[%clk 0:00:31]} 16. g4 {[%clk 0:01:57]}  hxg4 {[%clk 0:00:31]} 17. fxg4 {[%clk 0:01:57]}  Qe6 {[%clk 0:00:26]} 18. h5 {[%clk 0:01:56]}  cxd4 {[%clk 0:00:25]} 19. exd4 {[%clk 0:01:55]}  Rc4 {[%clk 0:00:20]} 20. Rde1 {[%clk 0:01:54]}  Qd7 {[%clk 0:00:14]} 21. h6 {[%clk 0:01:30]}  Bh8 {[%clk 0:00:12]} 22. h7+ {[%clk 0:01:30]}  Nxh7 {[%clk 0:00:12]} 23. Rh1 {[%clk 0:01:30]}  Nf6 {[%clk 0:00:08]} 24. Rxh8+ {[%clk 0:01:26]}  Kxh8 {[%clk 0:00:08]} 25. Qh6+ {[%clk 0:01:26]}  Kg8 {[%clk 0:00:02]} 26. Rh1 {[%clk 0:01:26]} 1-0


[Site "https://www.chess.com"]

[Event "Titled Tuesday Blitz June 13 Late 2023"]
[White "MaryanKyrychenko"]
[Black "Rustemov, Alexander"]
[BlackFideId "4119002"]
[WhiteElo "2582"]
[BlackElo "2782"]
[Result "0-1"]
[Round "9"]
[TimeControl "180+2"]
[Date "2023.06.13"]
[WhiteClock "0:00:06"]
[BlackClock "0:02:03"]
[Board "30"]

1. e4 {[%clk 0:00:08]}  e6 {[%clk 0:02:54]} 2. d4 {[%clk 0:00:08]}  d5 {[%clk 0:02:54]} 3. Nc3 {[%clk 0:00:09]}  Bb4 {[%clk 0:02:53]} 4. e5 {[%clk 0:00:10]}  c5 {[%clk 0:02:53]} 5. f4 {[%clk 0:00:10]}  cxd4 {[%clk 0:02:51]} 6. Qxd4 {[%clk 0:00:10]}  Nc6 {[%clk 0:02:52]} 7. Qd1 {[%clk 0:00:10]}  d4 {[%clk 0:02:52]} 8. a3 {[%clk 0:00:11]}  Ba5 {[%clk 0:02:52]} 9. b4 {[%clk 0:00:11]}  Nxb4 {[%clk 0:02:53]} 10. axb4 {[%clk 0:00:12]}  Bxb4 {[%clk 0:02:53]} 11. Bd2 {[%clk 0:00:12]}  dxc3 {[%clk 0:02:49]} 12. Be3 {[%clk 0:00:13]}  Bd7 {[%clk 0:02:36]} 13. Nf3 {[%clk 0:00:11]}  Ne7 {[%clk 0:02:35]} 14. Bc4 {[%clk 0:00:11]}  a5 {[%clk 0:02:31]} 15. O-O {[%clk 0:00:11]}  Bc6 {[%clk 0:02:30]} 16. Qe2 {[%clk 0:00:12]}  Nd5 {[%clk 0:02:26]} 17. Rfd1 {[%clk 0:00:11]}  Qe7 {[%clk 0:02:25]} 18. Bxd5 {[%clk 0:00:11]}  Bxd5 {[%clk 0:02:24]} 19. Nd4 {[%clk 0:00:12]}  O-O {[%clk 0:02:24]} 20. Nb5 {[%clk 0:00:12]}  Rfc8 {[%clk 0:02:14]} 21. f5 {[%clk 0:00:12]}  Bc4 {[%clk 0:02:13]} 22. Qg4 {[%clk 0:00:10]}  exf5 {[%clk 0:02:12]} 23. Qxf5 {[%clk 0:00:08]}  Bxb5 {[%clk 0:02:08]} 24. e6 {[%clk 0:00:08]}  Be8 {[%clk 0:02:07]} 25. Bg5 {[%clk 0:00:06]}  Qxe6 {[%clk 0:02:06]} 26. Qf4 {[%clk 0:00:07]}  h6 {[%clk 0:02:03]} 27. Bh4 {[%clk 0:00:06]}  g5 {[%clk 0:02:03]} 0-1


[Site "https://www.chess.com"]